[Event "*** SCC Grand Prix: Titled Tuesday Blitz"]
[Site "Chess.com"]
[Date "2020.07.07"]
[Round "7"]
[White "rpragchess"]
[Black "Konavets"]
[Result "1-0"]
[WhiteElo "2826"]
[BlackElo "2948"]
[TimeControl "180+1"]
[EndTime "11:21:30 PDT"]
[Termination "rpragchess won on time"]

1. e4 {[%clk 0:03:00.9]} 1... c6 {[%clk 0:02:59.4]} 2. d4 {[%clk 0:02:59.5]}
2... d5 {[%clk 0:03:00]} 3. exd5 {[%clk 0:02:56.8]} 3... cxd5 {[%clk 0:03:00.2]}
4. Bd3 {[%clk 0:02:57.2]} 4... Nc6 {[%clk 0:03:00.6]} 5. c3 {[%clk 0:02:57.2]}
5... Qc7 {[%clk 0:03:00.8]} 6. h3 {[%clk 0:02:54.9]} 6... g6 {[%clk 0:02:59.3]}
7. Nf3 {[%clk 0:02:54.5]} 7... Bf5 {[%clk 0:02:59]} 8. O-O {[%clk 0:02:54.1]}
8... Bxd3 {[%clk 0:02:58.8]} 9. Qxd3 {[%clk 0:02:53.7]} 9... Bg7 {[%clk
0:02:59.5]} 10. Bg5 {[%clk 0:02:50.3]} 10... Nh6 {[%clk 0:02:57.9]} 11. Nh4
{[%clk 0:02:32.8]} 11... f6 {[%clk 0:02:54.7]} 12. Bxh6 {[%clk 0:02:32.3]} 12...
Bxh6 {[%clk 0:02:55.6]} 13. Na3 {[%clk 0:02:30]} 13... a6 {[%clk 0:02:52.3]} 14.
Rfe1 {[%clk 0:02:28.9]} 14... O-O {[%clk 0:02:47.9]} 15. Nf3 {[%clk 0:02:13.4]}
15... Rad8 {[%clk 0:02:43.1]} 16. Re6 {[%clk 0:02:08]} 16... Rd6 {[%clk
0:02:43.2]} 17. Qe2 {[%clk 0:02:04.7]} 17... Qd7 {[%clk 0:02:37.1]} 18. Rxd6
{[%clk 0:02:04.3]} 18... Qxd6 {[%clk 0:02:38]} 19. Re1 {[%clk 0:02:04.2]} 19...
Re8 {[%clk 0:02:37.7]} 20. c4 {[%clk 0:01:51.5]} 20... e5 {[%clk 0:02:21.5]} 21.
cxd5 {[%clk 0:01:29.2]} 21... Qxd5 {[%clk 0:02:15.6]} 22. Qc4 {[%clk 0:01:28.2]}
22... Qxc4 {[%clk 0:01:59]} 23. Nxc4 {[%clk 0:01:29.1]} 23... b5 {[%clk
0:01:56.8]} 24. Nd6 {[%clk 0:01:18.7]} 24... Rd8 {[%clk 0:01:56.8]} 25. dxe5
{[%clk 0:00:58.1]} 25... Nxe5 {[%clk 0:01:55.8]} 26. Nxe5 {[%clk 0:00:56.7]}
26... Rxd6 {[%clk 0:01:55.9]} 27. Nf3 {[%clk 0:00:57.3]} 27... Kf7 {[%clk
0:01:55.3]} 28. g3 {[%clk 0:00:56.4]} 28... Rc6 {[%clk 0:01:45.7]} 29. Re2
{[%clk 0:00:52.2]} 29... Bg7 {[%clk 0:01:44.9]} 30. Rd2 {[%clk 0:00:50]} 30...
Ke7 {[%clk 0:01:40.9]} 31. h4 {[%clk 0:00:41.5]} 31... f5 {[%clk 0:01:40.4]} 32.
h5 {[%clk 0:00:40]} 32... gxh5 {[%clk 0:01:25.3]} 33. Nh4 {[%clk 0:00:39.1]}
33... Ke6 {[%clk 0:01:19]} 34. Re2+ {[%clk 0:00:37.5]} 34... Kf6 {[%clk
0:01:19.2]} 35. f4 {[%clk 0:00:37.4]} 35... Bf8 {[%clk 0:01:17.1]} 36. b3 {[%clk
0:00:32.8]} 36... Re6 {[%clk 0:00:56.2]} 37. Rc2 {[%clk 0:00:28.9]} 37... Be7
{[%clk 0:00:53.5]} 38. Kf2 {[%clk 0:00:27.8]} 38... Rd6 {[%clk 0:00:52.3]} 39.
Nf3 {[%clk 0:00:26.3]} 39... Bd8 {[%clk 0:00:50.9]} 40. Ne5 {[%clk 0:00:21.7]}
40... Bb6+ {[%clk 0:00:51]} 41. Kf3 {[%clk 0:00:21.7]} 41... Bd4 {[%clk
0:00:50.2]} 42. Nc6 {[%clk 0:00:20.1]} 42... Bb6 {[%clk 0:00:42.8]} 43. Ne5
{[%clk 0:00:19.9]} 43... Bd4 {[%clk 0:00:33.4]} 44. Nc6 {[%clk 0:00:18.4]} 44...
Ba1 {[%clk 0:00:33.4]} 45. Ke2 {[%clk 0:00:18.3]} 45... Ke6 {[%clk 0:00:29.9]}
46. a4 {[%clk 0:00:17.2]} 46... Kd5 {[%clk 0:00:20.5]} 47. Nb4+ {[%clk
0:00:08.5]} 47... Ke4 {[%clk 0:00:20.8]} 48. axb5 {[%clk 0:00:09]} 48... axb5
{[%clk 0:00:21.7]} 49. Rc5 {[%clk 0:00:07.2]} 49... h4 {[%clk 0:00:19]} 50. gxh4
{[%clk 0:00:06.3]} 50... Kxf4 {[%clk 0:00:17.9]} 51. Nd3+ {[%clk 0:00:06.6]}
51... Kg4 {[%clk 0:00:15.2]} 52. Rxb5 {[%clk 0:00:07.1]} 52... f4 {[%clk
0:00:10.1]} 53. Nf2+ {[%clk 0:00:06]} 53... Kxh4 {[%clk 0:00:08.1]} 54. Kf3
{[%clk 0:00:06.9]} 54... Rc6 {[%clk 0:00:03.3]} 55. Ne4 {[%clk 0:00:04.7]} 55...
Rc1 {[%clk 0:00:03.2]} 56. Kxf4 {[%clk 0:00:03.9]} 56... Rf1+ {[%clk 0:00:03.5]}
57. Ke3 {[%clk 0:00:04.5]} 57... h5 {[%clk 0:00:03.8]} 58. Rb7 {[%clk
0:00:04.2]} 58... Re1+ {[%clk 0:00:03.4]} 59. Kf3 {[%clk 0:00:04.2]} 59... Bd4
{[%clk 0:00:04]} 60. Nd6 {[%clk 0:00:02.5]} 60... Re3+ {[%clk 0:00:03.7]} 61.
Kf4 {[%clk 0:00:03]} 61... Rd3 {[%clk 0:00:04]} 62. Nf5+ {[%clk 0:00:03.6]}
62... Kh3 {[%clk 0:00:04.4]} 63. Ke4 {[%clk 0:00:04.5]} 63... Rd1 {[%clk
0:00:04.5]} 64. Nxd4 {[%clk 0:00:05]} 64... h4 {[%clk 0:00:05.1]} 65. Nf3 {[%clk
0:00:05.5]} 65... Rb1 {[%clk 0:00:03]} 66. Kf4 {[%clk 0:00:05.5]} 66... Rb2
{[%clk 0:00:01.5]} 67. b4 {[%clk 0:00:05.6]} 67... Rb1 {[%clk 0:00:02.1]} 68.
Kg5 {[%clk 0:00:04.4]} 68... Kg3 {[%clk 0:00:01.5]} 69. Nxh4 {[%clk 0:00:04.3]}
69... Kf2 {[%clk 0:00:02.4]} 70. Nf5 {[%clk 0:00:04.6]} 70... Kf3 {[%clk
0:00:02.6]} 71. Kf6 {[%clk 0:00:04.8]} 71... Ke4 {[%clk 0:00:03.2]} 72. Ke6
{[%clk 0:00:05.4]} 72... Rf1 {[%clk 0:00:03.1]} 73. Nd6+ {[%clk 0:00:04.9]}
73... Kd4 {[%clk 0:00:03.6]} 74. Rc7 {[%clk 0:00:05.2]} 74... Rh1 {[%clk
0:00:02.7]} 75. Rc4+ {[%clk 0:00:05.2]} 75... Kd3 {[%clk 0:00:03.2]} 76. Kd5
{[%clk 0:00:05.6]} 76... Rh5+ {[%clk 0:00:02.3]} 77. Kc6 {[%clk 0:00:05.6]}
77... Rh6 {[%clk 0:00:02.9]} 78. Rc5 {[%clk 0:00:06.2]} 78... Kd4 {[%clk
0:00:02.2]} 79. b5 {[%clk 0:00:06.7]} 79... Rh7 {[%clk 0:00:01.6]} 80. b6 {[%clk
0:00:07.1]} 80... Rh8 {[%clk 0:00:02.5]} 81. b7 {[%clk 0:00:07.2]} 81... Rg8
{[%clk 0:00:02.6]} 82. Rc1 {[%clk 0:00:06.9]} 82... Ke5 {[%clk 0:00:02.3]} 83.
Nc8 {[%clk 0:00:06.6]} 83... Rg6+ {[%clk 0:00:02.2]} 84. Kb5 {[%clk 0:00:06.7]}
84... Rg2 {[%clk 0:00:01.7]} 85. Kb6 {[%clk 0:00:06.2]} 85... Rb2+ {[%clk
0:00:01.1]} 86. Kc7 {[%clk 0:00:06.5]} 1-0

[Event "*** SCC Grand Prix: Titled Tuesday Blitz"]
[Site "Chess.com"]
[Date "2020.07.07"]
[Round "7"]
[White "Ave_Mariia"]
[Black "K-Nygren"]
[Result "1-0"]
[WhiteElo "2364"]
[BlackElo "2457"]
[TimeControl "180+1"]
[EndTime "11:21:30 PDT"]
[Termination "Ave_Mariia won on time"]

1. c4 {[%clk 0:02:48.4]} 1... Nf6 {[%clk 0:02:58.7]} 2. Nc3 {[%clk 0:02:48.4]}
2... e5 {[%clk 0:02:58.9]} 3. g3 {[%clk 0:02:48.1]} 3... b5 {[%clk 0:02:58.1]}
4. Bg2 {[%clk 0:02:46.4]} 4... c6 {[%clk 0:02:57.1]} 5. cxb5 {[%clk 0:02:45.1]}
5... d5 {[%clk 0:02:57]} 6. d4 {[%clk 0:02:41.7]} 6... e4 {[%clk 0:02:51.8]} 7.
bxc6 {[%clk 0:02:36.5]} 7... Nxc6 {[%clk 0:02:52.7]} 8. Bg5 {[%clk 0:02:23.9]}
8... Bb4 {[%clk 0:02:34.2]} 9. Rc1 {[%clk 0:02:11.9]} 9... Qa5 {[%clk
0:02:29.5]} 10. a3 {[%clk 0:02:02.8]} 10... Be7 {[%clk 0:02:24.2]} 11. Nh3
{[%clk 0:02:00.4]} 11... O-O {[%clk 0:02:12.2]} 12. O-O {[%clk 0:01:59.9]} 12...
Be6 {[%clk 0:02:10.8]} 13. Nf4 {[%clk 0:01:56.1]} 13... Rad8 {[%clk 0:02:07.6]}
14. f3 {[%clk 0:01:33.6]} 14... Nxd4 {[%clk 0:02:00.4]} 15. b4 {[%clk
0:01:04.6]} 15... Qb6 {[%clk 0:01:53]} 16. Na4 {[%clk 0:01:00.5]} 16... Qa6
{[%clk 0:01:19.2]} 17. Qxd4 {[%clk 0:00:46.8]} 17... Qxa4 {[%clk 0:01:18.2]} 18.
Nxe6 {[%clk 0:00:33.5]} 18... fxe6 {[%clk 0:01:17.9]} 19. Rc7 {[%clk 0:00:28]}
19... Bd6 {[%clk 0:01:10.8]} 20. Rxa7 {[%clk 0:00:25.6]} 20... Qc2 {[%clk
0:01:06.6]} 21. Bxf6 {[%clk 0:00:19.6]} 21... Rxf6 {[%clk 0:00:56.6]} 22. fxe4
{[%clk 0:00:19.9]} 22... Rdf8 {[%clk 0:00:34.2]} 23. Rxf6 {[%clk 0:00:15.4]}
23... gxf6 {[%clk 0:00:35.1]} 24. Bf3 {[%clk 0:00:12.4]} 24... Be5 {[%clk
0:00:27.5]} 25. Qb6 {[%clk 0:00:11]} 25... Qc1+ {[%clk 0:00:23]} 26. Kg2 {[%clk
0:00:10.9]} 26... Qc8 {[%clk 0:00:21.8]} 27. Qb7 {[%clk 0:00:09.5]} 27... Qxb7
{[%clk 0:00:19.8]} 28. Rxb7 {[%clk 0:00:10.4]} 28... d4 {[%clk 0:00:20.5]} 29.
a4 {[%clk 0:00:10.2]} 29... Ra8 {[%clk 0:00:20.1]} 30. a5 {[%clk 0:00:10.1]}
30... Kf8 {[%clk 0:00:19.4]} 31. Bg4 {[%clk 0:00:10.4]} 31... f5 {[%clk
0:00:19.3]} 32. exf5 {[%clk 0:00:10.3]} 32... exf5 {[%clk 0:00:20.2]} 33. Bxf5
{[%clk 0:00:11.2]} 33... h5 {[%clk 0:00:19.5]} 34. Rh7 {[%clk 0:00:11.3]} 34...
Rb8 {[%clk 0:00:17]} 35. Rxh5 {[%clk 0:00:07.6]} 35... Rxb4 {[%clk 0:00:17.1]}
36. Be6 {[%clk 0:00:06.8]} 36... Bf6 {[%clk 0:00:16.2]} 37. Rf5 {[%clk
0:00:05.7]} 37... Ke7 {[%clk 0:00:16.1]} 38. Bd5 {[%clk 0:00:05.8]} 38... Rb5
{[%clk 0:00:15.5]} 39. Be4 {[%clk 0:00:05.8]} 39... Rb2 {[%clk 0:00:15]} 40. Kf3
{[%clk 0:00:05.5]} 40... Rb3+ {[%clk 0:00:15]} 41. Kg4 {[%clk 0:00:04.7]} 41...
Re3 {[%clk 0:00:15.1]} 42. Bf3 {[%clk 0:00:03.3]} 42... Ra3 {[%clk 0:00:13.3]}
43. Rb5 {[%clk 0:00:03.7]} 43... Ra4 {[%clk 0:00:13.2]} 44. Rb7+ {[%clk
0:00:03.8]} 44... Kd6 {[%clk 0:00:12.9]} 45. Rb6+ {[%clk 0:00:04.1]} 45... Ke5
{[%clk 0:00:12.2]} 46. Rb5+ {[%clk 0:00:04]} 46... Kd6 {[%clk 0:00:12.6]} 47.
Kf5 {[%clk 0:00:03.7]} 47... Bd8 {[%clk 0:00:11.9]} 48. g4 {[%clk 0:00:04.2]}
48... Ke7 {[%clk 0:00:10.6]} 49. Re5+ {[%clk 0:00:03.1]} 49... Kf7 {[%clk
0:00:10.1]} 50. h4 {[%clk 0:00:03.7]} 50... Bc7 {[%clk 0:00:09.8]} 51. Rc5
{[%clk 0:00:03.8]} 51... Bd6 {[%clk 0:00:09.4]} 52. Rb5 {[%clk 0:00:03.6]} 52...
d3 {[%clk 0:00:09.2]} 53. exd3 {[%clk 0:00:03.6]} 53... Rf4+ {[%clk 0:00:08.8]}
54. Kg5 {[%clk 0:00:04.1]} 54... Rd4 {[%clk 0:00:08.3]} 55. Rf5+ {[%clk
0:00:04.5]} 55... Ke7 {[%clk 0:00:08.3]} 56. h5 {[%clk 0:00:05.1]} 56... Rxd3
{[%clk 0:00:07.4]} 57. Be4 {[%clk 0:00:04.4]} 57... Rh3 {[%clk 0:00:06]} 58. Bd5
{[%clk 0:00:04.5]} 58... Bb4 {[%clk 0:00:05.8]} 59. Rf7+ {[%clk 0:00:04.6]}
59... Kd6 {[%clk 0:00:06.1]} 60. Bc4 {[%clk 0:00:04.9]} 60... Bc3 {[%clk
0:00:05.8]} 61. Kg6 {[%clk 0:00:04.7]} 61... Rg3 {[%clk 0:00:05.3]} 62. g5
{[%clk 0:00:05.2]} 62... Rg4 {[%clk 0:00:05.3]} 63. Bb3 {[%clk 0:00:03.6]} 63...
Bd2 {[%clk 0:00:05.3]} 64. Rf5 {[%clk 0:00:03.7]} 64... Bc3 {[%clk 0:00:04.8]}
65. h6 {[%clk 0:00:03.5]} 65... Rg3 {[%clk 0:00:05.2]} 66. h7 {[%clk 0:00:04]}
66... Bh8 {[%clk 0:00:05.2]} 67. Bf7 {[%clk 0:00:04.1]} 67... Ke7 {[%clk
0:00:05]} 68. Bd5 {[%clk 0:00:04.1]} 68... Rh3 {[%clk 0:00:04.8]} 69. Rf7+
{[%clk 0:00:04.1]} 69... Kd6 {[%clk 0:00:05.3]} 70. Rf8 {[%clk 0:00:04.2]} 70...
Be5 {[%clk 0:00:05.4]} 71. Bf7 {[%clk 0:00:03.3]} 71... Rh4 {[%clk 0:00:04.3]}
72. a6 {[%clk 0:00:02.9]} 72... Ke7 {[%clk 0:00:04.5]} 73. Re8+ {[%clk
0:00:02.7]} 73... Kd6 {[%clk 0:00:03.9]} 74. a7 {[%clk 0:00:03.6]} 74... Ra4
{[%clk 0:00:03]} 75. a8=Q {[%clk 0:00:04.5]} 75... Rxa8 {[%clk 0:00:02.4]} 76.
Rxa8 {[%clk 0:00:05.4]} 76... Ke7 {[%clk 0:00:03.2]} 77. h8=Q {[%clk 0:00:05.9]}
77... Bg7 {[%clk 0:00:01.2]} 78. Qg8 {[%clk 0:00:05.8]} 1-0

[Event "*** SCC Grand Prix: Titled Tuesday Blitz"]
[Site "Chess.com"]
[Date "2020.07.07"]
[Round "7"]
[White "Margarita2907"]
[Black "Ole83"]
[Result "1-0"]
[WhiteElo "2097"]
[BlackElo "2268"]
[TimeControl "180+1"]
[EndTime "11:21:33 PDT"]
[Termination "Margarita2907 won on time"]

1. e4 {[%clk 0:03:00.9]} 1... d6 {[%clk 0:02:59]} 2. d4 {[%clk 0:02:58.6]} 2...
Nf6 {[%clk 0:02:58.9]} 3. Nc3 {[%clk 0:02:58.5]} 3... g6 {[%clk 0:02:58.8]} 4.
Nf3 {[%clk 0:02:54.6]} 4... Bg7 {[%clk 0:02:58.4]} 5. Bd3 {[%clk 0:02:52]} 5...
O-O {[%clk 0:02:57.8]} 6. O-O {[%clk 0:02:51.7]} 6... Bg4 {[%clk 0:02:56.4]} 7.
h3 {[%clk 0:02:49.9]} 7... Bxf3 {[%clk 0:02:55.6]} 8. Qxf3 {[%clk 0:02:50]} 8...
Nc6 {[%clk 0:02:56.2]} 9. Ne2 {[%clk 0:02:48.8]} 9... e5 {[%clk 0:02:55.4]} 10.
c3 {[%clk 0:02:47.8]} 10... Qe7 {[%clk 0:02:44.8]} 11. d5 {[%clk 0:02:38.9]}
11... Nb8 {[%clk 0:02:43.1]} 12. Qe3 {[%clk 0:02:36.3]} 12... Nbd7 {[%clk
0:02:41.8]} 13. f4 {[%clk 0:02:36]} 13... exf4 {[%clk 0:02:40.8]} 14. Nxf4
{[%clk 0:02:35.7]} 14... Ne5 {[%clk 0:02:41.4]} 15. Bc2 {[%clk 0:02:34]} 15...
a5 {[%clk 0:02:37.3]} 16. a4 {[%clk 0:02:32.6]} 16... Rfe8 {[%clk 0:02:25.8]}
17. Re1 {[%clk 0:02:28.4]} 17... Ra6 {[%clk 0:01:52.8]} 18. b3 {[%clk
0:02:08.5]} 18... Nfd7 {[%clk 0:01:45.4]} 19. Bb2 {[%clk 0:02:03.6]} 19... Nc5
{[%clk 0:01:36.4]} 20. Qe2 {[%clk 0:01:44.5]} 20... Rb6 {[%clk 0:01:32.1]} 21.
Qd1 {[%clk 0:01:38]} 21... Qh4 {[%clk 0:01:28.2]} 22. Rf1 {[%clk 0:01:27]} 22...
Bh6 {[%clk 0:01:25.2]} 23. Bc1 {[%clk 0:01:16.2]} 23... Bg7 {[%clk 0:01:10.9]}
24. Rb1 {[%clk 0:01:08.4]} 24... Ned7 {[%clk 0:00:57.7]} 25. Qf3 {[%clk
0:01:06.3]} 25... Ne5 {[%clk 0:00:49.7]} 26. Qe3 {[%clk 0:00:59.3]} 26... Bh6
{[%clk 0:00:39]} 27. b4 {[%clk 0:00:49]} 27... axb4 {[%clk 0:00:30.1]} 28. cxb4
{[%clk 0:00:48.1]} 28... Na6 {[%clk 0:00:28.5]} 29. b5 {[%clk 0:00:37.5]} 29...
Nc5 {[%clk 0:00:28.1]} 30. a5 {[%clk 0:00:37]} 30... Nc4 {[%clk 0:00:22.6]} 31.
Qe1 {[%clk 0:00:31.4]} 31... Qxe1 {[%clk 0:00:21.1]} 32. Rxe1 {[%clk 0:00:29.9]}
32... Nxa5 {[%clk 0:00:20.8]} 33. Kf2 {[%clk 0:00:17.6]} 33... Nc4 {[%clk
0:00:20.5]} 34. Kf3 {[%clk 0:00:14.9]} 34... Bg7 {[%clk 0:00:20.3]} 35. Nd3
{[%clk 0:00:10.6]} 35... Nxd3 {[%clk 0:00:19.1]} 36. Bxd3 {[%clk 0:00:10.7]}
36... Ne5+ {[%clk 0:00:20]} 37. Ke3 {[%clk 0:00:10.9]} 37... Nxd3 {[%clk
0:00:20.6]} 38. Kxd3 {[%clk 0:00:11.5]} 38... Ra8 {[%clk 0:00:20.6]} 39. Be3
{[%clk 0:00:11.1]} 39... Ra3+ {[%clk 0:00:19.8]} 40. Ke2 {[%clk 0:00:10.9]}
40... Ra2+ {[%clk 0:00:19.4]} 41. Kf3 {[%clk 0:00:11]} 41... Ra3 {[%clk
0:00:18]} 42. Kf2 {[%clk 0:00:10.9]} 42... Rxe3 {[%clk 0:00:18]} 43. Kxe3 {[%clk
0:00:10]} 43... Bc3 {[%clk 0:00:15]} 44. Rec1 {[%clk 0:00:09.3]} 44... Be5
{[%clk 0:00:12.9]} 45. Rxc7 {[%clk 0:00:09]} 45... h5 {[%clk 0:00:12.5]} 46.
Rc8+ {[%clk 0:00:08.6]} 46... Kg7 {[%clk 0:00:12.4]} 47. Kd3 {[%clk 0:00:06.6]}
47... h4 {[%clk 0:00:12.4]} 48. Kc4 {[%clk 0:00:06.7]} 48... Kh6 {[%clk
0:00:11.1]} 49. Rc7 {[%clk 0:00:07.1]} 49... f6 {[%clk 0:00:10.8]} 50. Rf1
{[%clk 0:00:05.8]} 50... Kg5 {[%clk 0:00:10.3]} 51. Rf2 {[%clk 0:00:05.4]} 51...
Kh5 {[%clk 0:00:09.5]} 52. Ra2 {[%clk 0:00:04.9]} 52... Kg5 {[%clk 0:00:09.3]}
53. Ra8 {[%clk 0:00:04.7]} 53... Kf4 {[%clk 0:00:09.3]} 54. Rg8 {[%clk
0:00:04.9]} 54... Kxe4 {[%clk 0:00:09.1]} 55. Rxg6 {[%clk 0:00:05.5]} 55... Ke3
{[%clk 0:00:09.1]} 56. Rh6 {[%clk 0:00:05.5]} 56... Kf2 {[%clk 0:00:08.7]} 57.
Rg6 {[%clk 0:00:05.8]} 57... Bg3 {[%clk 0:00:08]} 58. Rxf6+ {[%clk 0:00:04.7]}
58... Kxg2 {[%clk 0:00:08.9]} 59. Rg6 {[%clk 0:00:04.5]} 59... Kxh3 {[%clk
0:00:09.5]} 60. Rh7 {[%clk 0:00:04.1]} 60... Kg2 {[%clk 0:00:09.6]} 61. Rxh4
{[%clk 0:00:03.4]} 61... Kf3 {[%clk 0:00:09.8]} 62. Rhh6 {[%clk 0:00:03.1]}
62... Be5 {[%clk 0:00:09.7]} 63. Re6 {[%clk 0:00:02.7]} 63... Kf4 {[%clk
0:00:09.6]} 64. Rh3 {[%clk 0:00:03.2]} 64... Kf5 {[%clk 0:00:09.4]} 65. Rh7
{[%clk 0:00:03.7]} 65... Ke4 {[%clk 0:00:09]} 66. Rhe7 {[%clk 0:00:04.2]} 66...
Kf5 {[%clk 0:00:09]} 67. Re8 {[%clk 0:00:04.2]} 67... Kf4 {[%clk 0:00:08.9]} 68.
Rd8 {[%clk 0:00:04.5]} 68... Kf5 {[%clk 0:00:08]} 69. Re7 {[%clk 0:00:04.2]}
69... Ke4 {[%clk 0:00:07.8]} 70. Rdd7 {[%clk 0:00:04.2]} 70... Kf5 {[%clk
0:00:07.8]} 71. Rxb7 {[%clk 0:00:04]} 71... Rxb7 {[%clk 0:00:08.2]} 72. Rxb7
{[%clk 0:00:04.6]} 72... Ke4 {[%clk 0:00:08]} 73. Rd7 {[%clk 0:00:05]} 73... Kf5
{[%clk 0:00:06.3]} 74. b6 {[%clk 0:00:05.5]} 1-0

[Event "*** SCC Grand Prix: Titled Tuesday Blitz"]
[Site "Chess.com"]
[Date "2020.07.07"]
[Round "7"]
[White "tylityli"]
[Black "SiddharthGMJagadeesh"]
[Result "1/2-1/2"]
[WhiteElo "2199"]
[BlackElo "2435"]
[TimeControl "180+1"]
[EndTime "11:22:06 PDT"]
[Termination "Game drawn by repetition"]

1. d4 {[%clk 0:02:55.9]} 1... Nf6 {[%clk 0:02:59.8]} 2. c4 {[%clk 0:02:56.1]}
2... g6 {[%clk 0:03:00.3]} 3. Nc3 {[%clk 0:02:56.2]} 3... d5 {[%clk 0:03:00.8]}
4. cxd5 {[%clk 0:02:56.2]} 4... Nxd5 {[%clk 0:03:01.7]} 5. Bd2 {[%clk
0:02:56.8]} 5... Nb6 {[%clk 0:03:01.2]} 6. Bf4 {[%clk 0:02:51.8]} 6... Bg7
{[%clk 0:03:00.7]} 7. e3 {[%clk 0:02:51.8]} 7... c5 {[%clk 0:03:00.7]} 8. dxc5
{[%clk 0:02:48.9]} 8... Bxc3+ {[%clk 0:03:01.3]} 9. bxc3 {[%clk 0:02:47.5]} 9...
Qxd1+ {[%clk 0:03:02.2]} 10. Rxd1 {[%clk 0:02:48]} 10... N6d7 {[%clk 0:03:02.9]}
11. Nf3 {[%clk 0:02:39.7]} 11... Nxc5 {[%clk 0:03:01]} 12. Bb5+ {[%clk
0:02:39.7]} 12... Bd7 {[%clk 0:02:57.1]} 13. Bxd7+ {[%clk 0:02:34.2]} 13...
Nbxd7 {[%clk 0:02:58]} 14. O-O {[%clk 0:02:34.8]} 14... O-O {[%clk 0:02:56.8]}
15. Ne5 {[%clk 0:02:33]} 15... Nxe5 {[%clk 0:02:55.4]} 16. Bxe5 {[%clk
0:02:33.9]} 16... Rac8 {[%clk 0:02:52.9]} 17. Bd4 {[%clk 0:02:31.4]} 17... Rfd8
{[%clk 0:02:34]} 18. Rb1 {[%clk 0:02:26.1]} 18... b6 {[%clk 0:02:33.9]} 19. Rb5
{[%clk 0:02:21.2]} 19... Ne6 {[%clk 0:02:30.5]} 20. Rfb1 {[%clk 0:02:16.5]}
20... Nxd4 {[%clk 0:02:25.7]} 21. cxd4 {[%clk 0:02:15.3]} 21... Rc2 {[%clk
0:02:26.3]} 22. R5b2 {[%clk 0:02:11.5]} 22... Rdc8 {[%clk 0:02:26.2]} 23. Kf1
{[%clk 0:02:11]} 23... f6 {[%clk 0:02:14.6]} 24. g4 {[%clk 0:02:06.2]} 24... Kf7
{[%clk 0:02:14.5]} 25. Kg2 {[%clk 0:02:05.7]} 25... Ke6 {[%clk 0:02:14.4]} 26.
Kf3 {[%clk 0:02:06]} 26... Rxb2 {[%clk 0:02:08.8]} 27. Rxb2 {[%clk 0:02:05.7]}
27... Rc3 {[%clk 0:02:09.7]} 28. a4 {[%clk 0:01:55]} 28... Ra3 {[%clk
0:02:08.2]} 29. Rb4 {[%clk 0:01:54.6]} 29... Ra2 {[%clk 0:02:08.5]} 30. h4
{[%clk 0:01:49.7]} 30... Kd5 {[%clk 0:02:05.7]} 31. h5 {[%clk 0:01:42.8]} 31...
Kc6 {[%clk 0:01:56.1]} 32. Kg3 {[%clk 0:01:30]} 32... Rc2 {[%clk 0:01:47.7]} 33.
hxg6 {[%clk 0:01:25.8]} 33... hxg6 {[%clk 0:01:47.5]} 34. f4 {[%clk 0:01:21.1]}
34... a5 {[%clk 0:01:44.3]} 35. d5+ {[%clk 0:01:20.7]} 35... Kc7 {[%clk
0:01:16.6]} 36. Re4 {[%clk 0:01:09]} 36... Kd7 {[%clk 0:01:13.6]} 37. Rd4 {[%clk
0:01:03.8]} 37... Rb2 {[%clk 0:01:10.1]} 38. Kf3 {[%clk 0:00:58.6]} 38... f5
{[%clk 0:01:03.7]} 39. Rc4 {[%clk 0:00:48.7]} 39... Rb4 {[%clk 0:00:50.2]} 40.
Rc6 {[%clk 0:00:47.5]} 40... Rxa4 {[%clk 0:00:31.4]} 41. Rxb6 {[%clk 0:00:46.5]}
41... Ra1 {[%clk 0:00:20.6]} 42. Rxg6 {[%clk 0:00:41.9]} 42... fxg4+ {[%clk
0:00:20.7]} 43. Rxg4 {[%clk 0:00:38.6]} 43... a4 {[%clk 0:00:21.2]} 44. Rg6
{[%clk 0:00:37.9]} 44... a3 {[%clk 0:00:19.8]} 45. Ra6 {[%clk 0:00:37.6]} 45...
a2 {[%clk 0:00:19.8]} 46. Ke4 {[%clk 0:00:37.5]} 46... Kc7 {[%clk 0:00:19.7]}
47. Ke5 {[%clk 0:00:34.9]} 47... Kb7 {[%clk 0:00:19]} 48. Ra3 {[%clk 0:00:33.7]}
48... Kb6 {[%clk 0:00:16.9]} 49. Ke6 {[%clk 0:00:32.3]} 49... Kc5 {[%clk
0:00:14.4]} 50. e4 {[%clk 0:00:31.3]} 50... Re1 {[%clk 0:00:13.2]} 51. Rxa2
{[%clk 0:00:23.6]} 51... Rxe4+ {[%clk 0:00:13.5]} 52. Kf5 {[%clk 0:00:23.6]}
52... Re1 {[%clk 0:00:13.3]} 53. Rd2 {[%clk 0:00:19]} 53... Kd6 {[%clk
0:00:13.2]} 54. Kg4 {[%clk 0:00:17.7]} 54... Ra1 {[%clk 0:00:12.7]} 55. Kf5
{[%clk 0:00:16.5]} 55... Ra5 {[%clk 0:00:12.6]} 56. Kg6 {[%clk 0:00:14.6]} 56...
Ra4 {[%clk 0:00:10.8]} 57. f5 {[%clk 0:00:13.6]} 57... Rg4+ {[%clk 0:00:08.6]}
58. Kh5 {[%clk 0:00:11.5]} 58... Rg8 {[%clk 0:00:07.6]} 59. Kh6 {[%clk
0:00:10.8]} 59... Ke5 {[%clk 0:00:06.6]} 60. Re2+ {[%clk 0:00:10.4]} 60... Kf6
{[%clk 0:00:05.3]} 61. Re6+ {[%clk 0:00:10.1]} 61... Kf7 {[%clk 0:00:04.5]} 62.
Kh5 {[%clk 0:00:08.7]} 62... Rd8 {[%clk 0:00:03.8]} 63. Re5 {[%clk 0:00:07.8]}
63... Rd6 {[%clk 0:00:03.8]} 64. Kg4 {[%clk 0:00:07.1]} 64... Rd8 {[%clk
0:00:02.8]} 65. Kf4 {[%clk 0:00:07.2]} 65... Rh8 {[%clk 0:00:03.1]} 66. Kg5
{[%clk 0:00:07]} 66... Rg8+ {[%clk 0:00:03.1]} 67. Kf4 {[%clk 0:00:07.1]} 67...
Rh8 {[%clk 0:00:04]} 68. Kg5 {[%clk 0:00:07.4]} 68... Rg8+ {[%clk 0:00:04.4]}
69. Kf4 {[%clk 0:00:07.6]} 69... Rg1 {[%clk 0:00:05.3]} 70. Ke4 {[%clk
0:00:07.6]} 70... Re1+ {[%clk 0:00:05.4]} 71. Kf4 {[%clk 0:00:08]} 71... Ra1
{[%clk 0:00:05.8]} 72. Ke4 {[%clk 0:00:08]} 72... Ra4+ {[%clk 0:00:05.8]} 73.
Ke3 {[%clk 0:00:08.4]} 73... Kf6 {[%clk 0:00:06.2]} 74. Re6+ {[%clk 0:00:08.5]}
74... Kf7 {[%clk 0:00:06.7]} 75. Re5 {[%clk 0:00:08.5]} 75... Ra5 {[%clk
0:00:06.8]} 76. Ke4 {[%clk 0:00:08.3]} 76... Ra1 {[%clk 0:00:07]} 77. Ke3 {[%clk
0:00:08.1]} 77... Re1+ {[%clk 0:00:07.4]} 78. Kf4 {[%clk 0:00:08.2]} 78... Rf1+
{[%clk 0:00:07.6]} 79. Ke4 {[%clk 0:00:08.3]} 79... Kf6 {[%clk 0:00:07.4]} 80.
Re6+ {[%clk 0:00:08.3]} 80... Kf7 {[%clk 0:00:07.2]} 81. Ke5 {[%clk 0:00:08.6]}
81... Re1+ {[%clk 0:00:07]} 82. Kd4 {[%clk 0:00:08.6]} 82... Rf1 {[%clk
0:00:06.5]} 83. Ke5 {[%clk 0:00:08.8]} 83... Rd1 {[%clk 0:00:06.1]} 84. Ke4
{[%clk 0:00:08.4]} 84... Rd2 {[%clk 0:00:05.6]} 85. Ke5 {[%clk 0:00:08]} 85...
Re2+ {[%clk 0:00:05.8]} 86. Kf4 {[%clk 0:00:07.9]} 86... Rf2+ {[%clk 0:00:05.8]}
87. Ke4 {[%clk 0:00:08]} 87... Ra2 {[%clk 0:00:05.4]} 88. Ke5 {[%clk 0:00:08]}
88... Ra5 {[%clk 0:00:05.4]} 89. Ke4 {[%clk 0:00:07.6]} 89... Ra4+ {[%clk
0:00:05.4]} 90. Ke5 {[%clk 0:00:07.7]} 90... Ra1 {[%clk 0:00:06.1]} 91. Ke4
{[%clk 0:00:07.6]} 91... Re1+ {[%clk 0:00:06.1]} 92. Kf4 {[%clk 0:00:07.9]}
92... Rf1+ {[%clk 0:00:06.4]} 93. Ke4 {[%clk 0:00:08.2]} 93... Rh1 {[%clk
0:00:06.7]} 94. Ke5 {[%clk 0:00:08.1]} 94... Re1+ {[%clk 0:00:06.6]} 95. Kf4
{[%clk 0:00:08.1]} 95... Rd1 {[%clk 0:00:07.1]} 96. Ke4 {[%clk 0:00:08.1]} 96...
Rd2 {[%clk 0:00:06.9]} 97. Ke5 {[%clk 0:00:07.6]} 97... Re2+ {[%clk 0:00:07.3]}
98. Kf4 {[%clk 0:00:07.6]} 98... Rf2+ {[%clk 0:00:07.3]} 99. Ke4 {[%clk
0:00:07.8]} 99... Rh2 {[%clk 0:00:07.3]} 100. Ke5 {[%clk 0:00:07.8]} 100... Rh1
{[%clk 0:00:07]} 101. Ke4 {[%clk 0:00:07.8]} 101... Re1+ {[%clk 0:00:07]} 102.
Kf4 {[%clk 0:00:07.8]} 1/2-1/2